[Event "Italian-ch Teams-B 2022"]
[Site "Montesilvano"]
[Date "2022.04.22"]
[Round "5.4"]
[White "Budyi, Danylo"]
[Black "Gueci, Riccardo"]
[Result "0-1"]
[ECO "D52"]
[WhiteElo "1817"]
[BlackElo "2098"]
[Annotator "TA"]
[PlyCount "146"]
[EventDate "2022.04.19"]
[EventType "team-tourn"]
[EventCountry "ITA"]
[SourceTitle "playchess.com"]
[Source "ChessBase"]
[SourceQuality "1"]
[TimeControl "40/5400+30:1800+30"]

{[%evp 14,146,16,1,21,18,102,95,110,100,143,136,145,156,156,91,122,120,131,99,98,82,114,60,59,0,0,0,0,-50,0,0,0,0,0,0,0,0,0,0,0,0,0,0,0,0,0,0,0,0,0,0,0,0,0,0,0,-235,-219,-215,0,-138,0,-205,-156,-728,-616,-1231,-987,-950,-896,-829,-759,-833,-858,-852,-833,-681,-612,-503,-594,-462,-163,-1701,-1602,-1478,-1331,-29973,-1500,-1396,-944,-29974,-29967,-29979,-5289,-29981,-29982,-29978,-9310,-5884,-3014,-1966,-1561,-1274,-671,-635,0,0,0,0,0,0,0,0,0,0,0,-1749,0,0,0,0,0,0,0,0,5102,402,419,0,0,0,0,-29992,-29993]} 1. d4 {[%emt 0:14:06]} d5 {[%emt 0:00:14]} 2. c4 {[%emt 0:00:48]} e6 {[%emt 0:00:08]} 3. Nc3 {[%emt 0:00:12]} Nf6 {[%emt 0:00:07]} 4. Bg5 {[%emt 0:00:15]} Nbd7 {[%emt 0:00:06]} 5. Nf3 {[%emt 0:00:25]} c6 {[%emt 0:00:08]} 6. e3 {[%emt 0:00:33]} Qa5 {[%emt 0:00:12]} 7. Bxf6 {[%emt 0:03:57]} Nxf6 {[%emt 0:00:12]} 8. Qb3 {[%emt 0:07:02]} Ne4 {[%emt 0:01:50] D52: Queen's Gambit Declined: Cambridge Springs Variation.} 9. Bd3 {[%emt 0:00:50]} Bb4 {[%emt 0:04:42]} (9... dxc4 10. Bxc4 (10. Qxc4 Nxc3 11. bxc3 Bd6) 10... Nxc3 11. bxc3 Bd6) (9... Nxc3 $11 10. bxc3 b6) 10. Bxe4 $16 {[%emt 0:06:04]} dxe4 {[%emt 0:00:03] White is better.} 11. Nd2 {[%emt 0:00:04]} f5 {[%emt 0:01:19] [#]} 12. c5 $146 {[%emt 0:00:42]} ({Predecessor:} 12. O-O O-O 13. c5 Bxc3 14. Nc4 Qb4 15. Qxc3 Qxc3 16. bxc3 b6 17. Ne5 bxc5 18. Nxc6 {1-0 (56) Obanuta,D-Ezejiofor,M (2035) Lagos 2015}) 12... O-O {[%emt 0:01:17]} 13. Nc4 {[%emt 0:02:39]} Bxc3+ {[%emt 0:01:15]} 14. Qxc3 {[%emt 0:00:58]} (14. bxc3 Qb5 15. Ne5) ({White should play} 14. bxc3 Qb5 15. Ne5) 14... Qc7 {[%emt 0:04:50]} 15. f4 {[%emt 0:16:20]} b6 {[%emt 0:12:28]} 16. b4 {[%emt 0:21:54]} bxc5 {[%emt 0:04:54]} 17. bxc5 {[%emt 0:02:42]} Rb8 {[%emt 0:00:47]} 18. Kd2 {[%emt 0:09:34]} (18. Qa3 $16) 18... Ba6 $14 {[%emt 0:07:04] aiming for ...Bxc4.} 19. Rhb1 {[%emt 0:00:27]} (19. Ne5 $14) 19... Bxc4 $11 {[%emt 0:18:08]} 20. Qxc4 {[%emt 0:00:23]} Kf7 {[%emt 0:00:02][%cal Og7g5]} 21. Kc2 {[%emt 0:03:06]} (21. g3 $11) 21... Rxb1 {[%emt 0:09:08]} (21... g5 $1 $15 22. Qf1 gxf4 23. Qxf4 Qxf4 24. exf4 h5) 22. Rxb1 $15 {[%emt 0:00:20][%mdl 4096] Endgame KQR-KQR} Rb8 {[%emt 0:00:17]} 23. Rb4 {[%emt 0:04:39]} Rxb4 {[%emt 0:01:32]} 24. Qxb4 $11 {[%emt 0:00:04] KQ-KQ} Qc8 {[%emt 0:00:10]} 25. Qc4 {[%emt 0:02:31] Inhibits Qa6.} Qb7 {[%emt 0:03:40]} 26. Qa4 {[%emt 0:01:34]} Kf6 {[%emt 0:01:52]} 27. Qc4 {[%emt 0:00:18]} h6 {[%emt 0:03:24]} 28. g3 {[%emt 0:00:29]} g5 {[%emt 0:01:01]} 29. Kc1 {[%emt 0:01:02]} gxf4 {[%emt 0:01:24]} 30. gxf4 {[%emt 0:00:26]} Qg7 {[%emt 0:00:02]} 31. Qe2 {[%emt 0:00:16]} Qg1+ {[%emt 0:02:15]} 32. Kc2 {[%emt 0:00:44]} Kg6 {[%emt 0:04:32]} 33. Kb3 {[%emt 0:00:57]} h5 {[%emt 0:01:29][%cal Bh6h5,Bh5h4,Bh4h3][%mdl 32]} 34. Ka4 {[%emt 0:00:37]} h4 {[%emt 0:01:31]} 35. Kb4 $2 {[%emt 0:00:29] [#]} (35. Qc4 $11 {and White has nothing to worry.} Kf6 36. Qe2) 35... h3 $1 $19 {[%emt 0:01:12]} 36. Kc3 {[%emt 0:00:24]} Qg4 $2 {[%emt 0:06:07]} (36... Qc1+ $19 37. Kb4 Qb1+ 38. Kc3 a5) 37. Kd2 {[%emt 0:00:36]} (37. Qc4 $11 {keeps the balance.} Kf7 38. Qa6) 37... Qg1 {[%emt 0:02:02]} (37... Qg2 $17) 38. Kc3 $1 {[%emt 0:00:24]} a5 {[%emt 0:02:11] Strongly threatening ...Qb1.} 39. a4 $2 {[%emt 0:00:38]} (39. Kc2) (39. Kc2 $17) 39... Qa1+ {[%emt 0:01:19]} 40. Kd2 {[%emt 0:00:29]} Qxa4 {[%emt 0:01:21] Threatens to win with ...Qa2+.} 41. Qa6 {[%emt 0:19:23]} Qa2+ {[%emt 0:17:18]} 42. Kc3 {[%emt 0:00:47]} Qa3+ {[%emt 0:01:23]} 43. Kc2 {[%emt 0:00:59]} Qxe3 {[%emt 0:09:13]} 44. Qxc6 {[%emt 0:00:32]} Qd3+ {[%emt 0:00:20]} (44... Kf6 45. Qd6 $11) 45. Kc1 {[%emt 0:00:07]} Qc3+ {[%emt 0:01:04]} 46. Kb1 {[%emt 0:00:31]} Qe1+ {[%emt 0:01:18]} 47. Kc2 {[%emt 0:01:35]} Qf2+ $2 {[%emt 0:00:07]} (47... Qe2+ 48. Kb3 Qd1+ 49. Ka3 Qa1+ 50. Kb3 Qb1+ 51. Ka3 Qb4+ 52. Ka2 Qc4+ 53. Ka3 Kh5) (47... Qe2+ 48. Kb3 Qd1+ 49. Ka3 Qa1+ 50. Kb3 Qb1+ 51. Ka3 Qa1+ 52. Kb3 Qb1+ 53. Ka3 Qb4+ 54. Ka2 Qc4+ 55. Ka3 Kh5 56. Qe8+ Kg4 57. Qg6+ Kf3 58. Qg3+ Ke2) 48. Kb1 $2 {[%emt 0:00:23]} (48. Kb3 Qe3+ 49. Ka4 Qxd4+ 50. Kb5) (48. Kb3 Qe3+ 49. Ka4 Qxd4+ 50. Kb5) 48... Qg1+ {[%emt 0:00:08]} 49. Kc2 {[%emt 0:00:35]} Qxh2+ {[%emt 0:00:12]} 50. Kb1 {[%emt 0:00:24]} Qg1+ {[%emt 0:01:00]} (50... Qxf4 $142 51. Qxe6+ Kh5 52. Qf7+ Kg4 53. Qg6+ Kf3 54. c6 h2 55. Qh5+ Kg2 56. c7 Qf1+ 57. Kb2 Qb5+ 58. Ka1 Qa4+ 59. Kb1 Qb4+ 60. Kc1 Qc4+ 61. Kb1 Qb3+ 62. Ka1 Qa4+ 63. Kb2 Qb5+ 64. Ka2 Qa4+ 65. Kb2 Qb5+) 51. Kc2 {[%emt 0:00:06]} Qf2+ {[%emt 0:00:49]} 52. Kb1 {[%emt 0:00:32]} Qxf4 {[%emt 0:02:21]} (52... Kh5 53. Qxe6 Qg1+ 54. Ka2 h2 55. Qxf5+ Kh4 56. Qh7+ Kg4 57. Qg6+ Kf3 58. Qh5+ Ke3 59. Qh3+ Kd2 60. Kb3 e3 61. Qh7 e2 62. Qc2+ Ke3 63. Kc4 h1=Q 64. Qc3+ Kf2 65. d5 Qb1 66. Qd4+ Kf1 67. Qe3 Qb4+ 68. Kd3 Qxd5+ 69. Qd4 Qdxd4+ 70. Kc2 Qdd2#) 53. Qxe6+ {[%emt 0:00:06]} Kg5 {[%emt 0:00:01]} (53... Kh5 54. Qb3 Qf1+ 55. Kb2 Qg2+ 56. Ka3 h2) (53... Kh5 $142 54. Qe8+ Kh4 55. c6 h2 56. Qh8+ Kg4 57. Kc2 Qf2+ 58. Kb3 Qf3+ 59. Kc4 Qf1+ 60. Kc5 h1=Q 61. Qg7+ Kf3 62. Qb7 Qd3 63. Qd7 e3 64. Kb6 Qhb1+ 65. Kc7 Qa6 66. Kd8 Qa8+ 67. Ke7 e2 68. Kf7 e1=Q 69. c7 Qa2+ 70. d5 Q8xd5+ 71. Qxd5+ Qxd5+ 72. Kf8 Qd6+ 73. Kg7 Qg1+ 74. Kh8 Qh6#) 54. Qg8+ {[%emt 0:01:15]} Kh4 {[%emt 0:00:03]} 55. c6 {[%emt 0:00:26]} Qf1+ {[%emt 0:01:12]} (55... e3 56. c7 e2 57. Qh7+ Kg3 58. Qg7+ Kf2 59. Qe5 Qxe5 60. dxe5 e1=Q+ 61. Ka2 Qc3 62. c8=Q Qxc8 63. Kb1 h2 64. Kb2 h1=Q 65. Ka2 Qc4+ 66. Kb2 Qhc1#) (55... e3 $142 56. c7 e2 57. Qe8 h2 58. Kc2 Qxc7+ 59. Kd3 Qg3+ 60. Kd2 Qg5+ 61. Kxe2 Qg4+ 62. Kd3 h1=Q 63. Kc4 Qc1+ 64. Kd5 Qg2+ 65. Kd6 Qa3+ 66. Kc7 Qc3+ 67. Kd8 Qa8+ 68. Ke7 Qe3+ 69. Kf6 Qaxe8 70. Kg7 Qxd4+ 71. Kh7 Qdh8#) 56. Ka2 {[%emt 0:01:16]} Qe2+ {[%emt 0:00:13]} (56... Qg2+ 57. Qxg2 hxg2) 57. Ka3 {[%emt 0:00:41]} Qd3+ {[%emt 0:00:14]} (57... h2 58. Qh7+ Kg3) 58. Ka4 {[%emt 0:00:11]} Qxd4+ {[%emt 0:01:21]} 59. Kb5 {[%emt 0:00:04] And now c7 would win.} Qb4+ $2 {[%emt 0:02:09]} ({Better is} 59... Qb2+ $19 60. Ka6 Qe2+ 61. Kb6 h2) 60. Ka6 $11 {[%emt 0:00:05]} Qd6 {[%emt 0:01:37]} (60... Qc3 $5 61. Qd8+ Kg4 $11) 61. Kb7 $1 {[%emt 0:00:14]} h2 {[%emt 0:00:41]} (61... e3 62. c7 Qb4+ 63. Ka6 e2 64. Qd8+ Kg4) (61... e3 $5 62. c7 Qb4+ 63. Ka6 e2 64. Qd8+ Kg4 $11) 62. c7 {[%emt 0:00:36]} Qb4+ {[%emt 0:00:43]} 63. Ka8 {[%emt 0:00:29]} e3 {[%emt 0:00:58]} 64. Qh7+ {[%emt 0:02:34]} Kg3 {[%emt 0:00:04]} 65. Qg6+ $2 {[%emt 0:00:10][%mdl 8192]} (65. c8=Q Qe4+ 66. Qcb7 (66. Ka7 h1=Q)) (65. c8=Q $11 Qe4+ 66. Qcb7 (66. Ka7 $2 h1=Q $19)) 65... Kh4 $2 {[%emt 0:01:05]} (65... Qg4 66. Qc6 f4) (65... Qg4 $19 66. Qc6 f4) 66. Qh6+ {[%emt 0:00:18]} Kg3 $1 {[%emt 0:00:03] ...Qe4+ is the strong threat.} 67. Qxe3+ {[%emt 0:00:25]} Kg4 {[%emt 0:00:57]} 68. Qe2+ {[%emt 0:00:22]} Kg3 {[%emt 0:00:07]} 69. Qe3+ {[%emt 0:00:04]} Kh4 $2 {[%emt 0:00:26][%mdl 8192]} (69... Kg4 $11 70. Qe2+ Kg3 71. Qe3+) 70. Qh6+ {[%emt 0:00:06]} (70. c8=Q $142 {White wants to mate with Qh8+.} Qe4+ 71. Qxe4+ fxe4 72. Kb7) 70... Kg3 $18 {[%emt 0:00:12] Hoping for ...Qe4+.} 71. Qe3+ $2 {[%emt 0:00:01]} (71. c8=Q $18 {Intending Qe3+ and mate.} Qe4+ 72. Ka7 Qd4+ 73. Kb7 Qb2+ 74. Ka6 Qe2+ 75. Kb6 Qb2+ 76. Ka7 Qf2+ 77. Kb7 Qb2+ 78. Ka6 Qe2+ 79. Kb7 Qb2+) 71... Kg2 {[%emt 0:00:00]} 72. Qe2+ {[%emt 0:00:16]} Kg1 {[%emt 0:00:00]} 73. Qe1+ $2 {[%emt 0:00:01][%mdl 8192] [#]} Qxe1 {[%emt 0:00:00] Weighted Error Value: White=1.03/Black=0.80} 0-1

[Event "Italian-ch Teams-B 2022"]
[Site "Montesilvano"]
[Date "2022.04.22"]
[Round "6.1"]
[White "Mastrovasilis, Dimitrios"]
[Black "Genocchio, Daniele"]
[Result "1-0"]
[ECO "C02"]
[WhiteElo "2621"]
[BlackElo "2358"]
[Annotator "TA"]
[PlyCount "81"]
[EventDate "2022.04.19"]
[EventType "team-tourn"]
[EventCountry "ITA"]
[SourceTitle "playchess.com"]
[Source "ChessBase"]
[SourceQuality "1"]
[TimeControl "40/5400+30:1800+30"]

{[%evp 14,81,40,31,43,45,60,20,9,-4,72,78,147,134,153,156,152,155,148,107,114,130,96,112,219,182,289,288,273,273,530,526,516,474,514,100,500,0,472,297,300,295,329,316,399,391,393,352,343,316,312,316,328,329,379,347,579,417,402,347,338,335,447,459,565,564,660,506,501,506]} 1. e4 {[%emt 0:04:58]} e6 {[%emt 0:03:42]} 2. d4 {[%emt 0:00:18]} d5 {[%emt 0:00:06]} 3. e5 {[%emt 0:00:21]} c5 {[%emt 0:00:10]} 4. c3 {[%emt 0:00:09]} Nc6 {[%emt 0:00:15]} 5. Nf3 {[%emt 0:00:09]} Bd7 {[%emt 0:00:16]} 6. Be2 {[%emt 0:00:42]} Rc8 {[%emt 0:07:58]} 7. O-O {[%emt 0:00:46]} Qb6 {[%emt 0:04:36]} 8. dxc5 {[%emt 0:20:36]} Bxc5 {[%emt 0:04:05] C02: French: Advance Variation.} 9. b4 {[%emt 0:00:19]} Be7 {[%emt 0:06:40]} 10. Bd3 {[%emt 0:01:55]} f6 {[%emt 0:06:01] The position is equal.} 11. Bf4 {[%emt 0:01:21]} fxe5 {[%emt 0:09:09]} (11... Nh6 $11 {remains equal.}) 12. Nxe5 $16 {[%emt 0:00:15] [#]} Nf6 $146 {[%emt 0:09:34] Against Qh5+} (12... Nxe5 $142 13. Bxe5 Nf6) ({Predecessor:} 12... Nxe5 13. Bxe5 Nf6 14. Nd2 O-O 15. Nf3 Ng4 16. Bd4 Qc7 17. Re1 Rxf3 18. Qxf3 Qxh2+ 19. Kf1 Qh5 20. Kg1 Qh2+ 21. Kf1 Qh5 22. Kg1 Qh2+ {½-½ (22) Knaak,R (2480)-Belozerov,A (2541) Rethymno 2003}) 13. Nxd7 {[%emt 0:03:29] &Bianco is more active.} Kxd7 {[%emt 0:01:09]} 14. Nd2 {[%emt 0:03:37]} Bd6 {[%emt 0:10:13]} 15. Bxd6 {[%emt 0:09:11]} ({Worse is} 15. Nc4 dxc4 16. Bxc4 Ne7 17. Qa4+ Kd8 18. Bxd6 Qxd6 $19) 15... Kxd6 {[%emt 0:00:06]} 16. c4 {[%emt 0:00:41] [#] c5+ is the strong threat.} ({Of course not} 16. Qf3 $6 Ne5 17. Qg3 Nh5 $11) 16... Ke7 {[%emt 0:03:22]} 17. cxd5 {[%emt 0:04:16]} exd5 {[%emt 0:00:45]} 18. Nf3 {[%emt 0:16:27]} Kf8 {[%emt 0:11:02]} (18... Nd4 $16) 19. Re1 {[%emt 0:09:07] Strongly threatening Qc1.} Nd4 {[%emt 0:03:46]} (19... Rc7 $142 20. Ng5 Re7 21. Rxe7 Nxe7) 20. Nxd4 $18 {[%emt 0:04:19]} Qxd4 {[%emt 0:00:03]} 21. Rc1 {[%emt 0:00:09]} Rc3 {[%emt 0:03:11] [#]} (21... Rxc1 22. Qxc1 Qxd3) 22. Qe2 $1 {[%emt 0:04:16] Qe7+ would kill now.} Qxd3 {[%emt 0:07:36]} 23. Qe7+ {[%emt 0:06:37]} Kg8 {[%emt 0:00:05] aiming for ...h5.} 24. Qe6+ {[%emt 0:00:06]} Kf8 {[%emt 0:00:06] And now ...h5 would win.} 25. Qe7+ {[%emt 0:00:51]} Kg8 {[%emt 0:00:02] Hoping for ...h5.} 26. Qd8+ {[%emt 0:00:09]} Kf7 {[%emt 0:00:04]} 27. Qxh8 {[%emt 0:00:06]} Qd2 {[%emt 0:00:29]} 28. Rcd1 {[%emt 0:00:37]} Qxa2 {[%emt 0:00:21]} 29. Qb8 {[%emt 0:01:57]} Qc2 {[%emt 0:02:37]} 30. Qxb7+ {[%emt 0:00:51]} ({Don't take} 30. Qd6 Kg6 31. Rxd5 h6 $18) 30... Rc7 {[%emt 0:00:12]} 31. Qb5 {[%emt 0:01:27]} Qc4 {[%emt 0:02:04]} 32. Qa5 {[%emt 0:01:33]} Rb7 {[%emt 0:02:16]} 33. Rc1 {[%emt 0:02:14]} Qf4 {[%emt 0:00:47]} 34. g3 {[%emt 0:00:59]} Qd2 {[%emt 0:00:49]} (34... Qd6 {was called for.} 35. b5 Qb6 36. Qxb6 Rxb6 37. Rc7+ Kg6) 35. Red1 {[%emt 0:00:32]} Qxb4 {[%emt 0:03:28]} 36. Qxb4 {[%emt 0:01:21]} Rxb4 {[%emt 0:00:03] KRR-KRN} 37. Rc7+ {[%emt 0:00:08]} Ke6 {[%emt 0:00:05]} 38. Rxg7 {[%emt 0:00:44] White is clearly winning.} Ra4 {[%emt 0:01:06]} 39. Re1+ {[%emt 0:00:40]} Kf5 {[%emt 0:00:57]} 40. f4 {[%emt 0:01:07][%csl Gf4][%cal Rg7g5]} Ne4 {[%emt 0:00:14] Prevents Rg5+.} 41. Rxh7 {[%emt 0:30:36] Weighted Error Value: White=0.45/Black=0.61} 1-0

[Event "Italian-ch Teams-B 2022"]
[Site "Montesilvano"]
[Date "2022.04.22"]
[Round "6.1"]
[White "Dervishi, Erald"]
[Black "Moroni, Luca Jr"]
[Result "1-0"]
[ECO "C78"]
[WhiteElo "2511"]
[BlackElo "2588"]
[Annotator "TA"]
[PlyCount "119"]
[EventDate "2022.04.19"]
[EventType "team-tourn"]
[EventCountry "ITA"]
[SourceTitle "playchess.com"]
[Source "ChessBase"]
[SourceQuality "1"]
[TimeControl "40/5400+30:1800+30"]

{[%evp 23,119,0,25,0,0,-5,-11,-15,-5,-5,33,0,0,0,0,-27,0,0,17,0,0,-8,27,-14,19,21,8,2,3,5,10,0,3,0,0,0,0,0,0,0,-7,-4,57,57,58,58,58,58,58,58,87,61,298,96,82,82,65,55,181,46,46,56,41,42,211,206,209,107,711,699,1397,1414,1234,1186,1070,1058,29961,29963,29964,1475,1116,999,794,795,29966,589,1543,1465,29958,29956,29973,29971,29964,29965,12825,5920,2537,1181]} 1. e4 {[%emt 0:00:14]} e5 {[%emt 0:00:03]} 2. Nf3 {[%emt 0:00:05]} Nc6 {[%emt 0:00:02]} 3. Bb5 {[%emt 0:00:09][%cal Bf1b5,Bb5a4,Ba4b3][%mdl 32]} a6 {[%emt 0:00:05]} 4. Ba4 {[%emt 0:00:07]} Nf6 {[%emt 0:00:02]} 5. O-O {[%emt 0:00:11]} b5 {[%emt 0:00:01]} 6. Bb3 {[%emt 0:00:08]} Bc5 {[%emt 0:00:03]} 7. c3 {[%emt 0:00:52]} d6 {[%emt 0:00:04]} 8. d4 {[%emt 0:00:55]} Bb6 {[%emt 0:00:03]} 9. Re1 {[%emt 0:01:08]} O-O {[%emt 0:00:05]} 10. h3 {[%emt 0:04:29]} h6 {[%emt 0:00:03]} 11. Be3 {[%emt 0:00:09]} Re8 {[%emt 0:00:06] 11...Re8 is better than 11...Bb7.} 12. Nbd2 {[%emt 0:00:17]} Bb7 {[%emt 0:00:04]} 13. Qb1 {[%emt 0:00:42] C78: Ruy Lopez: Archangelsk and Möller Defences.} Rb8 {[%emt 0:00:26]} 14. a3 {[%emt 0:02:50] [#]} exd4 $146 {[%emt 0:03:48]} ({Predecessor:} 14... Nh7 15. Qd3 Qf6 16. Bc2 Nf8 17. b4 Ng6 18. Nf1 Nf4 19. Qd1 Ne7 20. Kh2 Neg6 {0-1 (55) Rodriguez Guerrero,E (2450)-Beliavsky,A (2649) Linares 2003}) 15. cxd4 {[%emt 0:03:29] The position is equal.} Na5 {[%emt 0:03:03]} 16. Bc2 {[%emt 0:00:40]} c5 {[%emt 0:00:17]} 17. b4 {[%emt 0:05:06]} (17. d5 $5 {[%cal Rb2b4]}) 17... cxd4 $1 {[%emt 0:00:48]} 18. Nxd4 {[%emt 0:04:21]} Nc6 {[%emt 0:02:58]} 19. Nf5 {[%emt 0:01:44]} Bxe3 {[%emt 0:01:25]} 20. Rxe3 {[%emt 0:02:12]} Ne7 {[%emt 0:02:07]} 21. Nxe7+ {[%emt 0:06:05]} Rxe7 {[%emt 0:00:11]} 22. Qb2 {[%emt 0:05:06]} Rc8 {[%emt 0:05:07]} 23. Rd1 {[%emt 0:03:47]} Rec7 {[%emt 0:01:10]} 24. Bb3 {[%emt 0:01:37]} Qe7 {[%emt 0:15:49]} 25. e5 {[%emt 0:11:55]} dxe5 {[%emt 0:01:31]} 26. Rxe5 {[%emt 0:00:06]} Qf8 {[%emt 0:01:23]} 27. Nf1 {[%emt 0:00:40]} Rd8 {[%emt 0:04:44]} 28. Rxd8 {[%emt 0:03:05]} Qxd8 {[%emt 0:00:05]} 29. Ne3 {[%emt 0:07:03]} Qc8 {[%emt 0:13:36]} 30. Qd4 {[%emt 0:06:20]} Rc1+ {[%emt 0:09:35]} 31. Kh2 {[%emt 0:00:31] Hoping for Re7.} Qc7 {[%emt 0:02:35] Inhibits Re7.} 32. f4 {[%emt 0:00:19]} Qc3 {[%emt 0:02:48]} (32... Rc3 $11 33. Re7 Qxe7 34. Qxc3 Ne4) 33. Qd8+ $14 {[%emt 0:03:16]} Kh7 {[%emt 0:00:27]} 34. Bxf7 {[%emt 0:00:21][%cal Oe5e8] The board is on fire.} Qe1 {[%emt 0:19:26] And now ...Qg1+ would win.} 35. Qd3+ {[%emt 0:00:09]} Kh8 {[%emt 0:00:01]} 36. Nd5 $1 $40 {[%emt 0:00:54][%mdl 128] White has some attack.} Qg1+ {[%emt 0:07:22]} 37. Kg3 {[%emt 0:00:12] Threatens to win with Nxf6.} Rc8 $2 {[%emt 0:01:46]} (37... Re1 $14 38. Qf5 (38. Nxf6 Qxg2+ 39. Kh4 Qf2+ 40. Kg4 Qg2+ 41. Kh4 Qf2+ 42. Kh5 Rxe5+ 43. fxe5 Bf3+ 44. Ng4 Bxg4+ 45. Kxg4 Qxf7 $11) 38... Bxd5 39. Bxd5 Rxe5 40. Qxe5 Nxd5 41. Qxd5 Qe1+ 42. Kg4 Qe2+ 43. Kf5 Qe8) 38. Qe3 $2 {[%emt 0:10:25] Active counter play!} (38. Nxf6 $1 $18 {[%csl Gf6][%cal Rd3h7] and the rest is easy.} Qxg2+ 39. Kh4 Qf2+ 40. Kh5 gxf6 41. Qf5 $1 Bf3+ 42. Kxh6 (42. Kg6 Qg3+ 43. Kxf6 Qg7+ 44. Ke6 Rb8 $11) 42... Qh4+ 43. Bh5 Qxh5+ 44. Qxh5 Bxh5 45. Rxh5) 38... Qxe3+ $16 {[%emt 0:01:51]} 39. Nxe3 {[%emt 0:00:03]} Rc3 {[%emt 0:01:06]} 40. Kh2 {[%emt 0:02:12]} Kh7 {[%emt 0:02:14]} (40... Rxa3 $14 41. Ng4 Bc8 42. Nxf6 gxf6) 41. f5 {[%emt 0:30:28]} (41. Re7 $18) 41... h5 $1 $14 {[%emt 0:31:18]} 42. Kg3 {[%emt 0:15:22][%cal Bh2g3,Bg3f4,Bf4g5][%mdl 32]} Rxa3 {[%emt 0:00:00]} 43. Kf4 {[%emt 0:00:00] Black must now prevent Re7.} Bc6 $2 {[%emt 0:00:00]} (43... Rd3 $1 $14) 44. Re6 $18 {[%emt 0:00:00]} Bd7 {[%emt 0:00:00] [#]} 45. Rd6 {[%emt 0:00:00]} (45. Re7 $1 $18 {aiming for Nd5.} Rd3 46. g4) 45... Ra4 $2 {[%emt 0:00:00][%mdl 8192]} (45... Be8 $16 46. Rxf6 gxf6 47. Bxe8 h4) 46. Nd5 {[%emt 0:00:00]} Nxd5+ {[%emt 0:01:04]} 47. Rxd5 {[%emt 0:00:00]} Rxb4+ {[%emt 0:00:09]} 48. Kg5 {[%emt 0:00:00]} Bxf5 {[%emt 0:00:13]} 49. Rxf5 {[%emt 0:00:00][%mdl 4096] Endgame Threatening mate with Bg6+. KRB-KR} Rb2 {[%emt 0:00:20]} 50. g3 {[%emt 0:00:00]} Rg2 {[%emt 0:00:20]} 51. Bg6+ {[%emt 0:00:00]} (51. Rd5 $142 Rf2 52. Bg6+ Kg8 53. Rd6 a5 54. Rd5 Rf8 55. Rxb5 Ra8 56. Bxh5) 51... Kg8 {[%emt 0:00:01]} 52. Kh4 {[%emt 0:00:00] Bf7+ would kill now.} Rd2 {[%emt 0:00:30]} 53. Kxh5 {[%emt 0:00:00] White wants to mate with Re5.} b4 {[%emt 0:00:06]} 54. h4 {[%emt 0:00:00]} (54. Re5 $142 Rd8 55. Kg5 Rb8 56. Ra5 b3 57. Rxa6 Kf8 58. Bb1 b2 59. Kf4) 54... b3 {[%emt 0:00:16]} 55. Bf7+ {[%emt 0:00:00]} Kh7 {[%emt 0:00:01]} 56. Re5 {[%emt 0:00:00]} g6+ {[%emt 0:00:19]} 57. Bxg6+ {[%emt 0:00:00]} Kg7 {[%emt 0:00:01]} 58. g4 {[%emt 0:00:41]} b2 {[%emt 0:00:41]} 59. g5 {[%emt 0:01:22] White threatens Re7+ and mate.} Rd7 {[%emt 0:00:27] Against Re7+} 60. Re6 {[%emt 0:01:00] Weighted Error Value: White=0.37/Black=0.56} 1-0

[Event "Italian-ch Teams-B 2022"]
[Site "Montesilvano"]
[Date "2022.04.22"]
[Round "6.1"]
[White "Rombaldoni, Denis"]
[Black "Fier, Alexandr"]
[Result "1/2-1/2"]
[ECO "A38"]
[WhiteElo "2485"]
[BlackElo "2583"]
[Annotator "TA"]
[PlyCount "70"]
[EventDate "2022.04.19"]
[EventType "team-tourn"]
[EventCountry "ITA"]
[SourceTitle "playchess.com"]
[Source "ChessBase"]
[SourceQuality "1"]
[TimeControl "40/5400+30:1800+30"]

{[%evp 17,70,10,27,20,39,0,14,12,34,15,20,5,43,0,0,-33,-26,-12,-24,-28,-29,-50,-34,-39,-24,-25,-28,-65,-65,-68,-68,-99,-89,-98,-50,-74,-93,-83,-91,-101,-101,-116,-63,-69,0,0,0,0,0,0,0,0,0,0,0]} 1. Nf3 {[%emt 0:00:07]} Nf6 {[%emt 0:00:04]} 2. g3 {[%emt 0:00:05]} g6 {[%emt 0:00:07]} 3. b3 {[%emt 0:00:15]} Bg7 {[%emt 0:00:26]} 4. Bb2 {[%emt 0:00:06]} c5 {[%emt 0:00:04]} 5. c4 {[%emt 0:00:30]} d6 {[%emt 0:00:05]} 6. Bg2 {[%emt 0:03:01]} e5 {[%emt 0:00:50]} 7. Nc3 {[%emt 0:02:13]} Nc6 {[%emt 0:00:12]} 8. d3 {[%emt 0:02:06]} O-O {[%emt 0:00:06]} 9. O-O {[%emt 0:02:06]} Nh5 {[%emt 0:01:04]} 10. a3 {[%emt 0:08:04] [#] A38: Symmetrical English vs ...g6: 4 Bg2 Bg7 5 Nf3 Nf6.} a5 $146 {[%emt 0:00:08]} ({Predecessor:} 10... f5 11. b4 Kh8 12. Nd5 Be6 13. bxc5 dxc5 14. Qd2 Bg8 15. Bc3 Qd6 16. Qb2 b6 17. a4 Rab8 18. e3 Rfe8 {1-0 (94) Erigaisi,A (2660)-Puranik,A (2618) chess24.com INT 2022}) 11. Ne1 {[%emt 0:04:58]} f5 {[%emt 0:00:18]} 12. e3 {[%emt 0:04:30]} Be6 {[%emt 0:00:53]} 13. Nd5 {[%emt 0:03:24]} Nf6 {[%emt 0:00:21]} (13... Rb8 {with more complications.} 14. b4 f4 15. Nc2 Qd7) 14. Nc2 {[%emt 0:01:27]} Bf7 {[%emt 0:06:21]} 15. b4 {[%emt 0:03:53]} axb4 {[%emt 0:00:27]} 16. Nxf6+ {[%emt 0:04:28]} Bxf6 {[%emt 0:00:52]} 17. axb4 {[%emt 0:00:04]} cxb4 {[%emt 0:00:07]} 18. Qd2 {[%emt 0:15:00]} Qb6 {[%emt 0:01:04]} 19. Bxc6 {[%emt 0:03:02]} bxc6 {[%emt 0:00:06]} 20. Qxb4 {[%emt 0:00:05]} Rab8 {[%emt 0:02:45]} 21. Bc3 {[%emt 0:05:56]} Qc7 {[%emt 0:01:20]} 22. Qa5 {[%emt 0:01:36]} Qxa5 {[%emt 0:08:08]} 23. Rxa5 {[%emt 0:00:56]} Rb3 $36 {[%emt 0:00:06][%mdl 2048] Black has good play.} 24. Ra3 {[%emt 0:01:50]} Rfb8 {[%emt 0:00:28]} 25. Rfa1 {[%emt 0:01:04]} c5 {[%emt 0:02:16]} (25... Kg7 $17 26. Kg2 g5) 26. Kf1 {[%emt 0:04:25]} Kg7 $1 {[%emt 0:00:50]} 27. Rxb3 {[%emt 0:05:59]} Rxb3 {[%emt 0:00:05]} 28. Ra3 {[%emt 0:00:07] [#]} Rb1+ {[%emt 0:01:37]} 29. Ke2 {[%emt 0:00:13] [#]} Rh1 {[%emt 0:00:05]} (29... e4 $1 $17 30. Bxf6+ Kxf6) 30. Ra7 $15 {[%emt 0:02:01]} Rxh2 {[%emt 0:01:03]} (30... e4 $1 $15 31. Bxf6+ Kxf6) 31. Na3 $1 $11 {[%emt 0:01:57] The position is equal.} e4 {[%emt 0:00:37]} 32. d4 {[%emt 0:04:15]} Kg8 {[%emt 0:15:31]} 33. Ra8+ {[%emt 0:00:20]} Kg7 {[%emt 0:00:29] And now ...g5 would win.} 34. Ra7 {[%emt 0:00:07] Black must now prevent Nb5.} Kf8 {[%emt 0:01:23][%cal Of5f4]} 35. Ra8+ $1 {[%emt 0:00:33]} Kg7 {[%emt 0:00:09] Weighted Error Value: White=0.09 (flawless) /Black=0.14 (very precise)} 1/2-1/2